Cogmind - Beta 16 @@@ ROGUE MODE // 2026.01.11 @ 15:57:51 Player: AnotherZach Result: Destroyed by Y-72 Warden with Railgun Performance ------------- Evolutions (9) 4500 Regions Visited (18) 3600 Robots Destroyed (267) 1335 Value Destroyed (11799) 11799 Prototype IDs (41) 820 Alien Tech Used (0) 0 Bonus (6813) 6813 TOTAL SCORE: 28867 Bonus ------- High Alert Combat Kills 973 Follower Combat Kills 1730 Entered DSFs 500 Network Hubs Disabled 400 Aligned with FarCom 300 Built Enhanced Grunts 300 A7 Reached Mainframe 300 Met R17 at Cetus 500 Met R17 at Research 2000 Friendly Fire -190 Cogmind --------- Core Integrity 0/1600 Matter 276/300 Energy 388/600 System Corruption 52% Temperature Cool (18) Movement Core (100) Ox1 Location -1/Access Parts ------- > --- POWER (3) -------- (None) > --- PROPULSION (7) --- (None) > --- UTILITY (11) ----- Advanced Energy Well Advanced Terrain Scan Processor Armor Integrity Analyzer Graphene Brace > --- WEAPON (4) ------- (None) > --- INVENTORY (5) ---- Matter Compressor (250) Long-range Tractor Beam Peak State ------------ > --- POWER ------------ Quantum-Antimatter Reactor > --- PROPULSION ------- Treaded Heavy-Compact Exoskeleton > --- UTILITY ---------- Armored Scrap Engine Advanced Heat Sink Advanced Heat Sink Advanced Heat Sink Advanced Heat Sink Huge Storage Unit Structural Scanner Advanced Terrain Scan Processor Armor Integrity Analyzer Advanced Transmission Jammer > --- WEAPON ----------- Nova Cannon Hardcell Cannon Hvy. Directed Phase Construct/C Thermal Phase Construct/G > --- INVENTORY -------- Particle Reactor Micro Antimatter Reactor Myomer Leg Improved Thunder Leg Wheel Wheel Advanced Heat Sink Advanced Energy Well Advanced Energy Well Matter Compressor Improved Transmission Jammer ECM Suite Graphene Brace Advanced Hacking Suite Long-range Tractor Beam Improved Trap Extractor Improved Trap Extractor Trap Reconfigurator Quantum Rifle Heavy Proton Cannon [Rating: 185] Favorites ----------- Power Constructs Engine Light Deuterium Engine Power Core Reinforced Fission Core Reactor Constructs Propulsion Constructs Treads Constructs Leg Carbon-fiber Leg Wheel Wheel Hover Unit Aerolev Unit Flight Unit Xenon Bombardment Thruster Utility Armored Scrap Engine Device Armored Scrap Engine Storage Huge Storage Unit Processor Core Analyzer Hackware Hacking Suite Protection Improved Light Armor Plating Weapon Constructs Energy Gun Constructs Energy Cannon Constructs Ballistic Gun Constructs Ballistic Cannon Assault Cannon Launcher Grenade Launcher Slashing Weapon Chainsword Build | -11 -10 -10 -10 -9 -8 -8 -8 -6 -5 -5 -4 -4 -4 -4 -4 -3 -2 -1 ------- Run | Yrd Mat Min Exi Min Mat Sto Rec Fac Fac DSF Fac Ext Cet Arc Hub Res Res Acc Slots Evolved 18 | . . . . . 4 . . 4 2 . 2 . . . . 2 2 2 Power 2 | . . . . . . . . 1 . . . . . . . 1 . . Propulsion 5 | . . . . . 2 . . . 2 . . . . . . 1 . . Utility 9 | . . . . . 1 . . 3 . . 1 . . . . . 2 2 Weapon 2 | . . . . . 1 . . . . . 1 . . . . . . . Parts Attached 178 | 6 10 3 2 1 28 6 4 23 3 8 2 14 3 3 3 8 9 42 Power 23 | 1 . . 1 . 2 2 1 4 . 2 . 2 1 1 . 2 1 3 Engine 11 | 1 . . 1 . 2 2 1 2 . 1 . 1 . . . . . . Core 4 | . . . . . . . . 2 . 1 . 1 . . . . . . Reactor 8 | . . . . . . . . . . . . . 1 1 . 2 1 3 Propulsion 25 | 2 2 1 . . 8 2 . . 1 2 . . . . . . . 7 Treads 2 | 2 . . . . . . . . . . . . . . . . . . Leg 12 | . . . . . 4 1 . . 1 2 . . . . . . . 4 Wheel 8 | . 2 1 . . 4 . . . . . . . . . . . . 1 Hover 1 | . . . . . . 1 . . . . . . . . . . . . Flight 2 | . . . . . . . . . . . . . . . . . . 2 Utility 80 | 1 3 2 1 . 11 . 1 14 2 3 2 7 . 1 3 4 5 20 Device 48 | . 2 . . . 8 . 1 6 1 3 1 5 . 1 1 2 2 15 Storage 9 | 1 1 1 1 . . . . 1 1 . . 1 . . . . 1 1 Processor 10 | . . . . . . . . 3 . . . . . . . 2 1 4 Hackware 5 | . . . . . 1 . . 2 . . . . . . 2 . . . Protection 8 | . . 1 . . 2 . . 2 . . 1 1 . . . . 1 . Artifact . | . . . . . . . . . . . . . . . . . . . Weapon 50 | 2 5 . . 1 7 2 2 5 . 1 . 5 2 1 . 2 3 12 Energy Gun 15 | 1 1 . . 1 . . . 2 . 1 . 1 1 . . . . 7 Energy Cannon 9 | . 1 . . . . . . 1 . . . 3 . . . 1 1 2 Ballistic Gun 10 | 1 . . . . 1 1 1 . . . . 1 1 1 . 1 . 2 Ballistic Cannon 8 | . 1 . . . 3 . . 1 . . . . . . . . 2 1 Launcher 5 | . 2 . . . . 1 1 1 . . . . . . . . . . Special Weapon . | . . . . . . . . . . . . . . . . . . . Impact Weapon . | . . . . . . . . . . . . . . . . . . . Slashing Weapon 3 | . . . . . 3 . . . . . . . . . . . . . Piercing Weapon . | . . . . . . . . . . . . . . . . . . . Special Melee Weapon . | . . . . . . . . . . . . . . . . . . . Unidentified Prototypes 11 | . 1 . . . 1 4 1 . 1 . . . . . . 1 2 . Parts Lost 102 | . 1 4 . . 4 . 5 12 . 5 . 12 . 1 1 1 2 54 Power 15 | . . 1 . . . . 1 4 . 1 . 2 . . . . . 6 Propulsion 22 | . . . . . 3 . 3 . . 1 . . . . . . . 15 Utility 34 | . 1 1 . . 1 . . 3 . 2 . 5 . 1 1 . 1 18 Weapon 31 | . . 2 . . . . 1 5 . 1 . 5 . . . 1 1 15 Highest Loss Streak 34 | . 1 3 . . 2 . 5 3 . 3 . 5 . 1 1 1 1 34 To Critical Strikes 1 | . . . . . . . . 1 . . . . . . . . . . Average Backups 19 | 3 8 7 8 10 17 19 18 17 20 23 24 23 24 24 24 24 22 19 Power 1 | . 1 1 3 2 2 1 . 1 . 1 1 1 1 2 2 2 1 1 Propulsion 3 | 2 5 4 4 4 4 6 5 4 4 3 2 2 2 2 2 2 5 4 Utility 10 | . . . 1 4 7 7 8 10 11 13 15 14 14 14 15 14 12 11 Weapon 3 | . 1 1 . . 2 3 3 2 3 4 6 5 6 5 5 5 3 2 Tool/Special . | . . . . . . . . . . . . . . . . . . . Unused Backups 44 | . 2 . 1 1 5 4 3 4 2 1 1 3 2 2 . 5 1 7 Power 5 | . . . . 1 2 . . . . . . 1 . . . 1 . . Propulsion 16 | . 2 . . . . . 3 1 . . . 1 1 1 . 2 1 4 Utility 17 | . . . 1 . 2 3 . 3 . 1 1 1 . . . 2 . 3 Weapon 5 | . . . . . . 1 . . 2 . . . 1 1 . . . . Tool/Special 1 | . . . . . 1 . . . . . . . . . . . . . Average Slot Usage (%) 71 | . 94 83 69 88 92 99 79 66 68 67 72 66 68 65 68 60 60 60 Engine 4 | . 14 8 . 14 8 9 9 7 4 6 5 . . . . . . . Core 1 | . . . . . . . . 1 5 3 5 6 2 . . . . . Reactor 2 | . . . . . . . . . . . . 1 7 10 10 10 6 4 Treads 1 | . 4 . . . . . 1 1 3 . . 1 4 . . 3 . . Leg 7 | . . . . . 16 35 22 1 6 10 15 2 . 5 5 . 3 4 Wheel 3 | . 24 28 28 28 17 . . 1 . . . . . . . . . . Device 16 | . 10 4 . . 10 9 8 13 17 15 16 20 21 20 18 18 22 25 Storage 7 | . 14 18 26 28 9 9 9 6 5 5 5 5 5 5 5 4 4 3 Processor 4 | . . . . . . . . 7 5 5 5 5 5 5 4 3 4 8 Protection 1 | . . . . . 2 8 3 2 . . 3 . . . . . 2 . Energy Gun 6 | . 8 8 . 2 2 . 2 9 5 10 15 7 5 8 11 8 4 5 Energy Cannon 1 | . . . . . . . . . 4 2 . 2 5 . . . . 2 Ballistic Gun 5 | . 7 . . . 2 4 9 3 5 . . 7 9 8 8 7 7 4 Ballistic Cannon 4 | . 6 8 . . 13 19 9 2 . . . 2 . . . . . . Slashing Weapon 1 | . . . . . 8 3 . 2 . 1 . . . . . . . . Peak Build Rating 185 | 6 10 8 9 11 43 44 51 83 92 103 109 130 113 119 119 150 167 185 Average Rating 90 | 4 7 6 6 8 28 38 41 72 87 94 106 115 106 114 116 139 158 163 On Entrance 68 | . 6 8 5 9 11 37 39 51 75 92 103 109 104 113 119 116 141 156 Avg Prop Armor Cover (%) 13 | . . . . . 5 . . . 4 . . . . . . . . 22 Naked Turns . | . . . . . . . . . . . . . . . . . . . Heaviest Build 167 | 14 52 52 50 53 75 65 62 95 110 133 127 153 143 139 151 158 163 167 Greatest Support 374 | 40 40 20 20 20 60 62 81 113 142 155 155 156 172 172 172 374 374 258 Greatest Overweight (x) 6 | . 2 2 2 2 6 1 3 1 . 1 . 2 1 . . . . 1 Average Overweight (x) . | . . 2 2 2 . . . . . . . . . . . . . . Largest Inventory Capacity 25 | 8 20 20 20 20 20 20 20 20 25 25 25 25 25 25 25 25 25 25 Average Capacity 22 | 6 12 20 20 20 20 20 20 20 20 25 25 25 25 25 25 25 25 24 Most Carried 25 | 8 10 9 16 17 20 20 20 20 23 25 25 25 25 25 25 25 25 24 Average Carried 19 | 3 8 8 11 13 19 19 18 17 20 23 24 23 24 24 24 24 22 19 Final Capacity 25 | 8 20 20 20 20 20 20 20 20 25 25 25 25 25 25 25 25 25 5 Final Carried 25 | 8 9 8 13 17 20 20 17 19 23 25 25 25 25 25 23 25 24 2 Scrap Engine Consumption 342 | . . . . . . . 37 66 10 14 1 105 18 3 . 20 18 50 Constructs Created 22 | . . . . . . . 2 4 2 1 . 7 . 1 . 1 . 4 Constructs Modified 121 | . . . . . . . 8 17 4 1 . 48 4 . 2 5 9 23 Class Distribution -------------------- 34% | Construct 18% | Scavenger-Construct 13% | Mutant 9% | Commander-Construct 7% | Trapper-Skirmisher 6% | Trapper-Construct Dominant Class ---------------- Mutant | -10/Materials Mutant | -10/Mines Mutant | -10/Exiles Mutant | -9/Mines Mutant | -8/Materials Trapper-Skirmisher | -8/Storage Trapper-Skirmisher | -8/Recycling Construct | -6/Factory Construct | -5/Factory Construct | -5/DSF Construct | -4/Factory Construct | -4/Extension Scavenger-Construct | -4/Cetus Commander-Construct | -4/Archives Commander-Construct | -4/Hub_04(d) Construct | -3/Research Scavenger-Construct | -2/Research Scavenger-Construct | -1/Access Resources | -11 -10 -10 -10 -9 -8 -8 -8 -6 -5 -5 -4 -4 -4 -4 -4 -3 -2 -1 ----------- Run | Yrd Mat Min Exi Min Mat Sto Rec Fac Fac DSF Fac Ext Cet Arc Hub Res Res Acc Matter Collected 8998 | 96 316 55 605 120 617 791 700 1153 39 107 . 1640 124 159 28 409 292 1747 Remotely 103 | . 103 . . . . . . . . . . . . . . . . . Salvage Created 15587 | 96 399 74 . 34 757 447 1787 2514 47 589 . 2760 114 298 196 603 1042 3830 Parts 666 | 10 20 2 . 4 37 14 61 104 3 30 . 91 2 13 9 20 41 205 Haulers Intercepted 8 | . 1 . . . 1 1 . 1 . . . 1 . . . 1 1 1 Recyclers Shooed 16 | . 2 . . . 1 2 1 5 . . . 1 . . 1 . . 3 Parts Field Recycled . | . . . . . . . . . . . . . . . . . . . Retrieved Matter . | . . . . . . . . . . . . . . . . . . . Parts Self-Destructed . | . . . . . . . . . . . . . . . . . . . Prevented . | . . . . . . . . . . . . . . . . . . . Parts Restored . | . . . . . . . . . . . . . . . . . . . Kills | -11 -10 -10 -10 -9 -8 -8 -8 -6 -5 -5 -4 -4 -4 -4 -4 -3 -2 -1 ------- Run | Yrd Mat Min Exi Min Mat Sto Rec Fac Fac DSF Fac Ext Cet Arc Hub Res Res Acc Combat Hostiles Destroyed 172 | . 7 4 . 1 9 4 9 28 . 8 . 28 1 2 1 8 9 53 Melee 2 | . . . . . . . . 2 . . . . . . . . . . Guns 91 | . 3 . . . . 1 4 12 . 5 . 21 1 2 1 6 7 28 Cannons 56 | . . 2 . . 9 3 5 7 . 1 . 7 . . . 1 2 19 AOE 15 | . 4 2 . 1 . . . 7 . 1 . . . . . . . . Classes Destroyed 19 | 3 4 . . . 3 1 3 2 . 2 . 1 . . . . . . Worker 11 | 1 1 . . . 1 . . 4 . . . 2 . . . . 1 1 Builder 11 | . 2 . . . . . . 1 . . . 3 . . 1 . . 4 Tunneler 2 | 1 . . . 1 . . . . . . . . . . . . . . Hauler 8 | . 1 . . . 1 1 . 1 . . . 1 . . . 1 1 1 Recycler 40 | 1 1 . . . 4 3 12 7 . . . 6 . . 1 . 3 2 Mechanic 4 | . . . . . . . . 1 1 . . . . . . . 1 1 Operator 7 | . . . . . 3 . . . . . . . . 4 . . . . Watcher 10 | . 2 . . . 2 . . 4 . . . 1 1 . . . . . Swarmer 33 | . . . . . 1 . . 4 . . . 6 . . 1 . 5 16 Grunt 56 | . 7 4 . 1 4 . 1 14 . 3 . 10 . . . 6 . 6 Brawler 1 | . . . . . . . . 1 . . . . . . . . . . Protector 1 | . . . . . . . 1 . . . . . . . . . . . Sentry 23 | . . . . . 4 3 4 . . . . 7 . 2 . . . 3 Specialist 3 | . . . . . . . . . . 3 . . . . . . . . Hunter 18 | . . . . . . 1 . 5 . 1 . 2 . . . 2 2 5 Programmer 30 | . . . . . . . 1 4 . . . . . . . . 2 23 Heavy 1 | . . . . . . . . . . 1 . . . . . . . . Behemoth 2 | . . . . . . . . . . . . 2 . . . . . . Cetus Guard 1 | . . . . . . . . . . . . . 1 . . . . . Scrapper 3 | . . . . . . . 3 . . . . . . . . . . . Thug 2 | . . . . . . . . . . . . 2 . . . . . . Best Kill Streak 7 | 2 5 2 . 1 3 3 4 7 1 4 . 6 1 4 2 3 6 7 Combat Bots Only 7 | . 3 2 . 1 2 2 3 4 . 4 . 4 1 1 1 2 4 7 Max Kills in Single Turn 3 | 1 3 1 . 1 1 1 2 3 1 1 . 2 1 1 1 2 2 2 Gunslinging 1 | . . . . . . . . . . . . . . . . 1 1 1 Exploded 2 | . 1 1 . 1 . . . 2 . 1 . . . . . . . . Melee 1 | . . . . . . . . 1 . . . . . . . . . . Uniques/NPCs Destroyed . | . . . . . . . . . . . . . . . . . . . Combat | -11 -10 -10 -10 -9 -8 -8 -8 -6 -5 -5 -4 -4 -4 -4 -4 -3 -2 -1 -------- Run | Yrd Mat Min Exi Min Mat Sto Rec Fac Fac DSF Fac Ext Cet Arc Hub Res Res Acc Hostile Shots Fired 2402 | . 29 24 . 7 76 12 63 460 . 116 2 374 31 6 69 98 119 916 Missed 724 | . 7 10 . 2 27 3 15 145 . 48 2 121 8 2 20 36 32 246 Hits 1678 | . 22 14 . 5 49 9 48 315 . 68 . 253 23 4 49 62 87 670 Melee 8 | . . . . . 4 . . 4 . . . . . . . . . . Projectile 1670 | . 22 14 . 5 45 9 48 311 . 68 . 253 23 4 49 62 87 670 Critical Strikes 82 | . . . . . 6 1 2 9 . 2 . 18 6 . 4 8 3 23 Actively Blocked 31 | . . . . . . . . . . . . 7 6 . . 4 3 11 Part Disruptions 3 | . . . . . . . . . . . . . . . . . . 3 Damage Taken 34049 | 38 294 212 . 78 809 136 1093 4705 . 1626 . 5134 673 158 1206 780 1864 15243 Core 3281 | 19 22 33 . 33 117 41 105 390 . 175 . 495 49 . 38 35 111 1618 Absorbed by Shields 815 | . . . . . . . 4 4 . . . . 145 . . 565 97 . Redirected to Shielding 309 | . . . . . . . . 104 . . . 205 . . . . . . Ignored by Resistances 131 | . . . . . . . . . . . . 131 . . . . . . Regen/Repaired (Parts) 10307 | . . . . . 37 . 115 2177 438 29 100 2012 313 . 22 981 653 3430 Core Remaining (%) 71 | 92 . . . 57 . . 52 54 . 82 . . . . 49 97 92 . Volleys Fired 748 | 7 34 19 . 5 37 16 62 126 2 33 1 122 18 16 14 24 34 178 Largest 4 | 2 2 2 . 1 3 3 3 3 3 3 3 4 4 4 4 4 4 4 Hottest 382 | 60 95 95 . 45 111 111 99 194 170 335 186 291 382 165 165 197 234 376 Shots Fired 2109 | 14 62 30 . 5 74 39 154 297 6 69 3 471 51 54 56 89 116 519 Gun 1480 | 14 41 13 . 1 7 11 80 203 4 48 3 353 42 54 56 79 101 370 Cannon 603 | . 13 11 . . 67 28 71 89 2 21 . 118 9 . . 10 15 149 Launcher 26 | . 8 6 . 4 . . 3 5 . . . . . . . . . . Special . | . . . . . . . . . . . . . . . . . . . Kinetic 1036 | 7 33 11 . . 71 39 133 85 . . . 246 25 38 42 61 73 172 Thermal 819 | . 15 13 . . . . 18 166 2 26 2 187 17 16 14 18 33 292 Explosive 23 | . 8 6 . 4 . . . 5 . . . . . . . . . . Electromagnetic 231 | 7 6 . . 1 3 . 3 41 4 43 1 38 9 . . 10 10 55 Robot Hit Streak 13 | 6 12 3 . 4 7 5 12 13 2 10 . 13 9 8 4 4 13 11 Robot Miss Streak 8 | 1 2 3 . 2 4 4 3 8 3 2 . 6 4 4 4 4 4 8 Penetration Max 1 | . . . . . . . . 1 . . . 1 . . 1 1 1 1 Secondary Targets 16 | . . . . . . . . 1 . . . 1 1 . . 3 5 5 Max Gunslinging Chain 2 | . . . . . . . . 1 . . . 1 1 . . 1 2 2 Shots Hit Robots 1132 | 12 35 15 . 4 61 19 77 194 2 40 . 271 28 30 17 47 65 215 Core Hits 532 | 4 19 7 . 4 24 9 33 130 2 18 . 99 12 13 10 19 27 102 Critical Kills 23 | . . . . . . . . . . . . 8 . 1 . 1 1 12 Critical Parts Destroyed 21 | . . . . . . . 1 . . . . 10 . . . 2 1 7 Critical Strikes 88 | . 1 2 . . 4 . 3 9 . 2 . 33 2 1 . 3 5 23 Burn 14 | . . 1 . . . . 1 4 . . . 6 . . . . 1 1 Meltdown 3 | . . . . . . . . . . . . . . . . . . 3 Destroy 46 | . . . . . . . 1 . . . . 22 . 1 . 3 2 17 Blast 15 | . 1 1 . . 3 . 1 3 . . . 4 . . . . 2 . Corrupt 7 | . . . . . . . . . . 2 . 1 2 . . . . 2 Sever 3 | . . . . . 1 . . 2 . . . . . . . . . . Melee Attacks 89 | . . . . . 42 5 . 35 . 7 . . . . . . . . Impact . | . . . . . . . . . . . . . . . . . . . Slashing 89 | . . . . . 42 5 . 35 . 7 . . . . . . . . Piercing . | . . . . . . . . . . . . . . . . . . . Sneak Attacks 11 | . . . . . 8 2 . 1 . . . . . . . . . . Combat Hostiles . | . . . . . . . . . . . . . . . . . . . Follow-up Attacks . | . . . . . . . . . . . . . . . . . . . Damage Inflicted 35010 | 213 1088 517 . 133 1923 458 1701 6097 56 1157 . 7399 787 820 544 1602 2138 8377 Guns 18964 | 143 333 60 . 10 92 131 840 2262 30 717 . 4946 548 820 526 1286 1888 4332 Cannons 11127 | . 98 149 . . 868 194 804 1588 26 317 . 2389 239 . . 316 250 3889 Explosions 3106 | 70 657 308 . 123 36 . 44 1745 . 123 . . . . . . . . Melee 1560 | . . . . . 927 133 . 500 . . . . . . . . . . Ramming 253 | . . . . . . . 13 2 . . . 64 . . 18 . . 156 Kinetic 14115 | 60 235 149 . . 925 325 1449 1486 . . . 3770 287 598 379 893 1568 1991 Thermal 13929 | 70 491 60 . . 36 . 195 2729 30 529 . 2791 261 222 147 393 450 5525 Explosive 1621 | . 306 308 . 123 . . . 884 . . . . . . . . . . Electromagnetic 3532 | 83 56 . . 10 35 . 44 496 26 628 . 774 239 . . 316 120 705 Impact . | . . . . . . . . . . . . . . . . . . . Slashing 1560 | . . . . . 927 133 . 500 . . . . . . . . . . Piercing . | . . . . . . . . . . . . . . . . . . . Highest Corruption 52 | . . . . . . . . 13 . . . . . . 8 1 7 52 Average Corruption 12 | . . . . . . . . 7 . . . . . . 2 1 6 22 Corruption Purged 11 | . . . . . . . . 4 . . . . . . . . . 7 Corruption Blocked . | . . . . . . . . . . . . . . . . . . . Effects 196 | . . . . . . . . 70 . . . . . . 1 4 2 119 Message Errors 43 | . . . . . . . . 18 . . . . . . . . . 25 Matter Fused 37 | . . . . . . . . 23 . . . . . . . 1 . 13 Heat Flow Errors 14 | . . . . . . . . 3 . . . . . . . 1 1 9 Energy Discharges 20 | . . . . . . . . 10 . . . . . . . 1 . 9 Parts Rejected 2 | . . . . . . . . . . . . . . . . . . 2 Parts Fused 3 | . . . . . . . . 1 . . . . . . . . . 2 Data Loss (minor) 16 | . . . . . . . . 4 . . . . . . 1 . . 11 Data Loss (major) 10 | . . . . . . . . 4 . . . . . . . . 1 5 Misfires 6 | . . . . . . . . 3 . . . . . . . . . 3 Alerts 3 | . . . . . . . . 1 . . . . . . . . . 2 Misdirections 10 | . . . . . . . . 1 . . . . . . . . . 9 Weapon Failures 32 | . . . . . . . . 2 . . . . . . . 1 . 29 Overload Shots 22 | . . . . . . . . . . 4 . 7 3 . . . . 8 Effects 2 | . . . . . . . . . . 1 . . . . . . . 1 Energy Bleed 1 | . . . . . . . . . . 1 . . . . . . . . Short Circuit 1 | . . . . . . . . . . . . . . . . . . 1 Overflow Damage 776 | . 117 . . . 243 36 66 138 . . . 39 . . . . 12 125 Projectiles 261 | . . . . . 20 . 66 19 . . . 19 . . . . 12 125 Explosions 241 | . 117 . . . 6 . . 118 . . . . . . . . . . Melee 274 | . . . . . 217 36 . 1 . . . 20 . . . . . . Knockbacks 43 | . 1 1 . . 7 1 6 16 . . . 10 . . . . . 1 Impact 1 | . . . . . . . . . . . . 1 . . . . . . Kinetic 42 | . 1 1 . . 7 1 6 16 . . . 9 . . . . . 1 Secondary . | . . . . . . . . . . . . . . . . . . . Self-Inflicted Damage 312 | 39 . 15 . . 12 . 53 134 . . . . . . . . . 59 Shots 11 | 1 . 1 . . 1 . 3 4 . . . . . . . . . 1 Rammed 9 | . . . . . . . . 2 . . . 1 . . . . . 6 Targets Rammed 16 | . . . . . . . 1 2 . . . 3 . . 1 . . 9 Kicked 7 | . . . . . . . 1 . . . . 2 . . 1 . . 3 Crushed . | . . . . . . . . . . . . . . . . . . . Highest Temperature 504 | 12 256 372 . 4 171 27 302 345 . 172 39 352 129 6 16 114 133 504 Average Temperature 98 | 12 111 176 . 3 57 20 70 101 . 66 26 85 74 4 13 54 34 129 Received Heat Transfer 4792 | . 168 114 . 45 405 36 551 971 . 237 . 1180 54 18 241 75 13 684 Effects 18 | . . 3 . . . . 3 5 . . . . . . . . . 7 Shutdowns 2 | . . 1 . . . . . . . . . . . . . . . 1 Energy Bleed 6 | . . . . . . . 2 2 . . . . . . . . . 2 Interference 6 | . . . . . . . 1 3 . . . . . . . . . 2 Short Circuit 3 | . . 2 . . . . . . . . . . . . . . . 1 Damage (minor) 1 | . . . . . . . . . . . . . . . . . . 1 Siege Activations . | . . . . . . . . . . . . . . . . . . . Martial Activations . | . . . . . . . . . . . . . . . . . . . Shielding Activations . | . . . . . . . . . . . . . . . . . . . Robots Disrupted . | . . . . . . . . . . . . . . . . . . . Combat Hostiles . | . . . . . . . . . . . . . . . . . . . Robots Corrupted 6 | . . . . . . . . . . 1 . 1 . . . 1 . 3 Combat Hostiles 5 | . . . . . . . . . . 1 . . . . . 1 . 3 Parts Fried 26 | . . . . . . . . 3 . 6 . 7 . . . 1 . 9 Impact Corruptions 2 | . . . . . . . . . . . . 2 . . . . . . Robots Melted 3 | . . . . . . . . . . . . . . . . . . 3 Combat Hostiles 2 | . . . . . . . . . . . . . . . . . . 2 Parts Melted 22 | . 1 . . . . . 1 6 . . . 5 . . . . 1 8 Heat Transferred 16806 | 50 583 222 . . 50 . 481 2744 5 641 . 5141 259 222 129 407 1050 4822 Parts Sabotaged . | . . . . . . . . . . . . . . . . . . . Parts Stolen . | . . . . . . . . . . . . . . . . . . . Parts Stripped . | . . . . . . . . . . . . . . . . . . . Power Chain Reactions 10 | 2 . . . . 1 . . 6 . 1 . . . . . . . . Alert | -11 -10 -10 -10 -9 -8 -8 -8 -6 -5 -5 -4 -4 -4 -4 -4 -3 -2 -1 ------- Run | Yrd Mat Min Exi Min Mat Sto Rec Fac Fac DSF Fac Ext Cet Arc Hub Res Res Acc Maximum Alert Level 3 | . 1 . . . . . . 3 2 1 1 2 2 2 1 . 1 3 Low Security (%) 52 | 100 74 100 . 100 100 100 100 15 . 1 61 34 . 9 59 100 87 27 Level 1 22 | . 25 . . . . . . 18 93 98 38 40 36 68 40 . 12 25 Level 2 19 | . . . . . . . . 40 6 . . 24 63 22 . . . 38 Level 3 5 | . . . . . . . . 26 . . . . . . . . . 7 Level 4 . | . . . . . . . . . . . . . . . . . . . Level 5 . | . . . . . . . . . . . . . . . . . . . High Security . | . . . . . . . . . . . . . . . . . . . Max Security . | . . . . . . . . . . . . . . . . . . . Sterilizations 1 | . . . . . . . . . . 1 . . . . . . . . Peak Influence 875 | 5 219 101 . 32 140 68 125 828 400 375 231 671 494 410 365 123 236 875 Initial 400 | . 3 79 . . . 48 8 300 400 185 196 102 363 180 129 123 21 132 Average 240 | 1 82 74 . 5 58 23 27 466 328 287 196 290 418 350 174 51 81 356 Influence Increases 9320 | 15 402 122 . 46 505 202 416 1799 25 240 75 1575 341 290 657 274 377 1959 Destroy 0b10 Robot/C 3920 | . 140 80 . 20 180 80 100 560 . 160 . 780 160 80 180 160 180 1060 Destroy 0b10 Robot/NC 530 | 15 35 . . 5 55 20 100 90 5 . . 80 10 20 15 5 30 45 Destroy Leader 676 | . 46 20 . 10 66 42 . 120 . 30 . 74 . . 32 22 32 182 Allied During Kill 659 | . . . . . . . 15 . . . . 244 116 100 184 . . . Trap Triggered on 0b10 220 | . . . . . . . . 120 . . . 40 . . . . . 60 Successful Hack 100 | . 14 . . . 6 4 17 17 5 . . 25 . . . 12 . . Select Force Hacks 220 | . . . . . . . 120 . . . . . . . 100 . . . Disable Machine 765 | . 105 . . . 60 45 45 180 15 . 15 30 15 60 60 15 15 105 Destroy Structure 820 | . 32 22 . 11 33 11 19 157 . 20 . 92 40 30 86 30 105 132 Advance Influence 300 | . . . . . . . . 300 . . . . . . . . . . Partial Spotted 60 | . . . . . 15 . . . . . . . . . . . . 45 Lose Combat Pursuer 1050 | . 30 . . . 90 . . 255 . 30 60 210 . . . 30 15 330 Influence Decreases 8455 | 10 203 255 71 46 389 296 438 981 578 130 239 1137 540 370 792 470 196 1314 Entered New Map 2081 | . 2 125 71 . . 68 14 . 418 80 179 109 286 270 241 112 18 88 Time Decay 4489 | 10 191 90 . 46 355 228 410 672 160 . 60 686 214 90 80 348 163 686 Lost Part 973 | . 10 40 . . 34 . 14 120 . 50 . 120 . 10 10 10 15 540 Lost Ally 412 | . . . . . . . . 50 . . . 222 40 . 100 . . . Purge Threat 500 | . . . . . . . . 139 . . . . . . 361 . . . Squads Dispatched 53 | . 1 . . . 1 . . 16 . 2 . 4 . . 7 10 1 11 Investigation 14 | . 1 . . . . . . 4 . . . 2 . . 3 4 . . Extermination 13 | . . . . . . . . 5 . . . . . . . . 1 7 Reinforcement 19 | . . . . . . . . 5 . 2 . 2 . . 2 6 . 2 Assault 6 | . . . . . . . . 2 . . . . . . 2 . . 2 Garrison 1 | . . . . . 1 . . . . . . . . . . . . . Intercept . | . . . . . . . . . . . . . . . . . . . Searches Triggered . | . . . . . . . . . . . . . . . . . . . Construction Impeded 4 | . . . . . . . . 2 . . . 1 . . . . . 1 Haulers Reinforced 3 | . . . . . . . . 1 . . . . . . . 2 . . Active Scanning Responses . | . . . . . . . . . . . . . . . . . . . Cargo Convoy Interrupts . | . . . . . . . . . . . . . . . . . . . Stealth | -11 -10 -10 -10 -9 -8 -8 -8 -6 -5 -5 -4 -4 -4 -4 -4 -3 -2 -1 --------- Run | Yrd Mat Min Exi Min Mat Sto Rec Fac Fac DSF Fac Ext Cet Arc Hub Res Res Acc Distress Signals 21 | . . . . . 1 . . 4 . . . 2 2 . 2 8 . 2 Communications Jammed 89 | . . . . . . . . . . . . 22 . . 21 . . 46 Distress Signals 89 | . . . . . . . . . . . . 22 . . 21 . . 46 Times Spotted 373 | . 11 3 . 2 30 4 7 63 1 15 4 55 10 10 25 22 12 99 Peak Tracking Total 16 | . 2 2 . 2 8 2 5 11 . 5 4 9 5 2 13 4 5 16 Tactical Retreats 37 | . 2 . . . 3 . . 8 . 2 1 10 . . . 1 1 9 ECM-based Alert Blocks 1 | . . . . . . . . . . . . . . . . . . 1 Traps | -11 -10 -10 -10 -9 -8 -8 -8 -6 -5 -5 -4 -4 -4 -4 -4 -3 -2 -1 ------- Run | Yrd Mat Min Exi Min Mat Sto Rec Fac Fac DSF Fac Ext Cet Arc Hub Res Res Acc Traps Triggered 9 | . . . . . . 1 . 4 . . . 1 . . . 3 . . Indirectly . | . . . . . . . . . . . . . . . . . . . Trap Hack Attempts . | . . . . . . . . . . . . . . . . . . . Triggered . | . . . . . . . . . . . . . . . . . . . Disarmed . | . . . . . . . . . . . . . . . . . . . Reprogrammed . | . . . . . . . . . . . . . . . . . . . Reused 23 | . . . . . . . 1 12 . . . 4 . . . . . 6 Traps Reconfigurated 33 | . . . . . 5 1 . 15 . 2 . 4 . . . 2 . 4 Traps Extracted 18 | . . . . . 5 1 . 6 . . . 4 . . . 2 . . Installed 21 | . . . . . . . 4 8 . . . 4 . . . . . 5 Triggered 22 | . . . . . . . . 12 . . . 4 . . . . . 6 Most Traps Carried 9 | . . 3 3 3 8 9 9 8 3 3 3 7 3 3 3 5 5 5 Machines | -11 -10 -10 -10 -9 -8 -8 -8 -6 -5 -5 -4 -4 -4 -4 -4 -3 -2 -1 ---------- Run | Yrd Mat Min Exi Min Mat Sto Rec Fac Fac DSF Fac Ext Cet Arc Hub Res Res Acc Machines Disabled 53 | . 7 . . . 4 3 3 12 1 . 1 4 1 4 4 1 1 7 Max in Single Turn 5 | . 5 . . . 1 1 1 2 1 . 1 1 1 1 1 1 1 1 Garrison Access 3 | . . . . . . . . 2 . . . . . . 1 . . . Network Hub 2 | . . . . . . . . . . . . . . . 2 . . . Energy Cycler 1 | . . . . . . . . . . . . . . . . . . 1 Machines Repaired . | . . . . . . . . . . . . . . . . . . . Machines Dismantled . | . . . . . . . . . . . . . . . . . . . Machines Sabotaged 2 | . . . . . . . . . . . . . . . 2 . . . Overloaded Fab Kills . | . . . . . . . . . . . . . . . . . . . Hacking | -11 -10 -10 -10 -9 -8 -8 -8 -6 -5 -5 -4 -4 -4 -4 -4 -3 -2 -1 --------- Run | Yrd Mat Min Exi Min Mat Sto Rec Fac Fac DSF Fac Ext Cet Arc Hub Res Res Acc Machines Accessed 59 | . 3 . 1 . 10 3 12 13 1 . . 8 . . 3 3 1 1 Terminals 36 | . 3 . . . 7 3 5 4 1 . . 7 . . 3 2 1 . Fabricators 3 | . . . . . . . . 2 . . . . . . . . . 1 Repair Stations 1 | . . . . . 1 . . . . . . . . . . . . . Recycling Units 9 | . . . . . . . 6 2 . . . 1 . . . . . . Scanalyzers 5 | . . . . . 1 . . 3 . . . . . . . 1 . . Garrison Access 3 | . . . . . 1 . . 2 . . . . . . . . . . Total Hacks 141 | . 7 . 1 . 20 4 35 31 2 . . 15 . . 12 10 3 1 Successful 60 | . 2 . 1 . 7 3 15 17 1 . . 6 . . 6 2 . . Failed 80 | . 5 . . . 13 1 20 13 1 . . 9 . . 6 8 3 1 Catastrophic 21 | . 4 . . . 5 . 1 4 . . . 3 . . . 3 1 . Database Lockouts 1 | . . . . . . . . 1 . . . . . . . . . . Manual 48 | . 4 . 1 . 10 2 14 5 . . . . 1 . 7 . 3 1 Terminals 87 | . 7 . . . 14 4 17 10 2 . . 13 . . 12 5 3 . Fabricators 5 | . . . . . . . . 4 . . . . . . . . . 1 Repair Stations 2 | . . . . . 2 . . . . . . . . . . . . . Recycling Units 20 | . . . . . . . 16 2 . . . 2 . . . . . . Scanalyzers 19 | . . . . . 3 . . 11 . . . . . . . 5 . . Garrison Access 5 | . . . . . 1 . . 4 . . . . . . . . . . Terminal Hacks 26 | . 2 . 1 . 2 3 6 3 1 . . 5 . . 3 . . . Part Schematic 3 | . . . . . . . 3 . . . . . . . . . . . Robot Schematic 2 | . 1 . . . . . 1 . . . . . . . . . . . Open Door 6 | . . . . . . 3 . . . . . 3 . . . . . . Open DSF 1 | . . . . . . . . . 1 . . . . . . . . . Branch Access Points 2 | . 1 . . . 1 . . . . . . . . . . . . . Unreport Threat 4 | . . . . . . . . 1 . . . . . . 3 . . . Locate Traps 3 | . . . . . 1 . . 1 . . . 1 . . . . . . Hauler Manifests 1 | . . . . . . . . 1 . . . . . . . . . . Zone Layout 1 | . . . . . . . . . . . . 1 . . . . . . Proto ID Catalog 1 | . . . 1 . . . . . . . . . . . . . . . Release Object 2 | . . . . . . . 2 . . . . . . . . . . . Fabricator Hacks 1 | . . . . . . . . 1 . . . . . . . . . . Build 1 | . . . . . . . . 1 . . . . . . . . . . Repair Station Hacks 2 | . . . . . 2 . . . . . . . . . . . . . Scan Component 1 | . . . . . 1 . . . . . . . . . . . . . Repair 1 | . . . . . 1 . . . . . . . . . . . . . Recycling Unit Hacks 5 | . . . . . . . 3 1 . . . 1 . . . . . . Retrieve Components 5 | . . . . . . . 3 1 . . . 1 . . . . . . Scanalyzer 14 | . . . . . 2 . . 10 . . . . . . . 2 . . Insert Component 2 | . . . . . . . . 2 . . . . . . . . . . Analyze 5 | . . . . . . . . 5 . . . . . . . . . . Retrieve Study 7 | . . . . . 2 . . 3 . . . . . . . 2 . . Garrison Access Hacks 2 | . . . . . . . . 2 . . . . . . . . . . Seal Access 2 | . . . . . . . . 2 . . . . . . . . . . Unauthorized Hacks 10 | . . . . . 1 . 6 . . . . . . . 3 . . . Terminals 6 | . . . . . 1 . 2 . . . . . . . 3 . . . Track 1 | . . . . . 1 . . . . . . . . . . . . . Botnet 2 | . . . . . . . 2 . . . . . . . . . . . Sabotage 3 | . . . . . . . . . . . . . . . 3 . . . Fabricators . | . . . . . . . . . . . . . . . . . . . Repair Stations . | . . . . . . . . . . . . . . . . . . . Recycling Units 4 | . . . . . . . 4 . . . . . . . . . . . Tunnel 4 | . . . . . . . 4 . . . . . . . . . . . Scanalyzers . | . . . . . . . . . . . . . . . . . . . Garrison Access . | . . . . . . . . . . . . . . . . . . . Data Cores Recovered 2 | . . . . . 2 . . . . . . . . . . . . . Used 2 | . . . . . 2 . . . . . . . . . . . . . Hacking Detections 43 | . 2 . . . 10 3 8 9 1 . . 5 . . . 3 1 1 Full Trace Events 12 | . 1 . . . 1 . 2 4 . . . 2 . . . 2 . . Feedback Events . | . . . . . . . . . . . . . . . . . . . Feedback Blocked 1 | . . . . . 1 . . . . . . . . . . . . . Robot Schematics Acquired 2 | . 1 . . . . . 1 . . . . . . . . . . . Robots Built . | . . . . . . . . . . . . . . . . . . . Authchips . | . . . . . . . . . . . . . . . . . . . Time . | . . . . . . . . . . . . . . . . . . . Total Robot Build Rating . | . . . . . . . . . . . . . . . . . . . Part Schematics Acquired 5 | . . . . . . . 3 2 . . . . . . . . . . Parts Built 2 | . . . . . . . . 2 . . . . . . . . . . Authchips . | . . . . . . . . . . . . . . . . . . . Time 58 | . . . . . . . . 58 . . . . . . . . . . Total Part Build Rating 14 | . . . . . . . . 14 . . . . . . . . . . Part Studies Acquired 7 | . . . . . 2 . . 3 . . . . . . . 2 . . Parts Repaired 1 | . . . . . 1 . . . . . . . . . . . . . Time 26 | . . . . . 26 . . . . . . . . . . . . . Parts Recycled . | . . . . . . . . . . . . . . . . . . . Recycled Matter . | . . . . . . . . . . . . . . . . . . . Retrieved Matter . | . . . . . . . . . . . . . . . . . . . Retrieved Components 30 | . . . . . . . 18 2 . . . 10 . . . . . . Parts Scanalyzed 2 | . . . . . . . . 2 . . . . . . . . . . Part Schematics Acquired 2 | . . . . . . . . 2 . . . . . . . . . . Parts Damaged 1 | . . . . . . . . 1 . . . . . . . . . . Bothacking | -11 -10 -10 -10 -9 -8 -8 -8 -6 -5 -5 -4 -4 -4 -4 -4 -3 -2 -1 ------------ Run | Yrd Mat Min Exi Min Mat Sto Rec Fac Fac DSF Fac Ext Cet Arc Hub Res Res Acc Used RIF Installer . | . . . . . . . . . . . . . . . . . . . Robots Hacked . | . . . . . . . . . . . . . . . . . . . Non-combat . | . . . . . . . . . . . . . . . . . . . Combat . | . . . . . . . . . . . . . . . . . . . Robot Hacks Applied . | . . . . . . . . . . . . . . . . . . . Relay Couplers Released 2 | . . . . . . . . . . . . . . . 2 . . . Machine Destruction 2 | . . . . . . . . . . . . . . . 2 . . . Fabnet Peak Effective % . | . . . . . . . . . . . . . . . . . . . Robots Rewired 15 | . . . . . . . 5 . . . . 10 . . . . . . Allies Hacked . | . . . . . . . . . . . . . . . . . . . Hacks Repelled . | . . . . . . . . . . . . . . . . . . . Allies | -11 -10 -10 -10 -9 -8 -8 -8 -6 -5 -5 -4 -4 -4 -4 -4 -3 -2 -1 -------- Run | Yrd Mat Min Exi Min Mat Sto Rec Fac Fac DSF Fac Ext Cet Arc Hub Res Res Acc Total Allies 26 | . . . . . . . 5 . . . . 16 5 . . . . . Largest Group 10 | . . . . . . . 5 4 . . . 10 6 6 5 . . . Highest-Rated Group 623 | . . . . . . . 119 103 . . . 391 623 623 480 . . . Highest-Rated Ally 159 | . . . . . . . 34 34 . . . 159 159 143 96 . . . Initial Warlord ECA Mod 9 | . . . . . . . . . . . 9 9 9 9 9 8 7 6 Total Orders 4 | . . . . . . . 2 2 . . . . . . . . . . STAY 2 | . . . . . . . 1 1 . . . . . . . . . . FOLLOW 2 | . . . . . . . 1 1 . . . . . . . . . . Ally Attacks 213 | . . . . . . . . 2 . . . 83 53 28 47 . . . Total Damage 7123 | . . . . . . . . 45 . . . 2077 1832 1047 2122 . . . Kills 34 | . . . . . . . . . . . . 14 9 2 9 . . . Allies Corrupted 3 | . . . . . . . . . . . . . . . 3 . . . Allies Melted . | . . . . . . . . . . . . . . . . . . . Intel | -11 -10 -10 -10 -9 -8 -8 -8 -6 -5 -5 -4 -4 -4 -4 -4 -3 -2 -1 ------- Run | Yrd Mat Min Exi Min Mat Sto Rec Fac Fac DSF Fac Ext Cet Arc Hub Res Res Acc Active Infowar (turns) 5667 | . . . . . 294 . . 1212 . 2 120 427 . 120 77 455 289 2671 Optics 1212 | . . . . . . . . 1212 . . . . . . . . . . Terrain 2351 | . . . . . 294 . . . . . . . . . . 455 289 1313 Structural 1164 | . . . . . . . . . . . . . . . . . . 1164 Jamming 2899 | . . . . . . . . . . 2 120 427 . 120 77 . . 2153 ECM 108 | . . . . . . . . . . . . . . . . . . 108 Robot Analysis Total . | . . . . . . . . . . . . . . . . . . . Derelict Logs Recovered 2 | . . 1 . 1 . . . . . . . . . . . . . . Drone Launches . | . . . . . . . . . . . . . . . . . . . Drone Recoveries . | . . . . . . . . . . . . . . . . . . . Exploration | -11 -10 -10 -10 -9 -8 -8 -8 -6 -5 -5 -4 -4 -4 -4 -4 -3 -2 -1 ------------- Run | Yrd Mat Min Exi Min Mat Sto Rec Fac Fac DSF Fac Ext Cet Arc Hub Res Res Acc Turns Passed 16474 | 116 403 194 303 234 1437 576 1959 2718 322 330 120 2941 451 181 170 797 478 2744 Spaces Moved 8031 | 51 248 122 265 189 869 289 1090 1358 114 155 100 938 180 80 84 379 254 1266 Core 122 | 2 . . . . . . . . . . . . . . . . . 120 Treads 1258 | 49 17 . . . . . 124 293 36 . . 208 128 . . 361 37 5 Legs 4049 | . . . . . 418 289 844 225 78 155 100 512 52 80 84 18 217 977 Wheels 1676 | . 231 122 265 189 451 . . 352 . . . . . . . . . 66 Hover 908 | . . . . . . . 122 488 . . . 218 . . . . . 80 Flight 18 | . . . . . . . . . . . . . . . . . . 18 Fastest Speed 40 | 50 80 110 110 110 85 118 61 61 118 110 110 110 137 137 137 116 99 40 Average Speed 128 | 155 96 110 110 110 106 128 120 100 129 124 110 211 187 137 137 116 101 133 Slowest Speed 394 | 160 160 110 110 110 260 190 330 166 145 179 110 394 304 137 137 137 116 280 Overloaded Moves . | . . . . . . . . . . . . . . . . . . . Propulsion Burnouts . | . . . . . . . . . . . . . . . . . . . Robots Hopped 1 | . . . . . . . . . . . . . . . . . . 1 Potential Cave-ins 2 | . . . . . . . . . . . . . . . . . 2 . Cave-ins Triggered . | . . . . . . . . . . . . . . . . . . . Exploration Rate (%) 43 | 4 58 28 64 50 62 30 97 35 3 93 3 82 67 75 17 12 4 33 Regions Visited 18 Branch Regions 9 Pre-discovered Areas 5 | . . . . 1 . . 4 . . . . . . . . . . . Known Exits Taken 7 | . 1 . . . 1 1 . 1 1 . . . . . . 1 1 . Unknown Exits Taken 10 | 1 . 1 1 1 . . 1 . . . 1 1 1 1 1 . . . Scrap Searched 3 | . . 1 . 2 . . . . . . . . . . . . . . Spaces Dug 75 | . 5 . . . 17 2 . 19 . 5 . 1 . . 8 3 3 12 Terrain Destroyed 535 | . 28 32 . 15 32 10 22 191 . 10 . 57 5 10 20 15 43 45 Melee 39 | . . . . . 17 2 . 16 . 4 . . . . . . . . Projectile 264 | . . . . . 15 8 22 25 . 2 . 57 5 10 20 15 43 42 AOE 232 | . 28 32 . 15 . . . 150 . 4 . . . . . . . 3 Terrain Rammed 1 | . . . . . . . . . . . . . . . . . . 1 Walls Destroyed . | . . . . . . . . . . . . . . . . . . . Machines Disabled . | . . . . . . . . . . . . . . . . . . . Actions | -11 -10 -10 -10 -9 -8 -8 -8 -6 -5 -5 -4 -4 -4 -4 -4 -3 -2 -1 --------- Run | Yrd Mat Min Exi Min Mat Sto Rec Fac Fac DSF Fac Ext Cet Arc Hub Res Res Acc Total 12493 | 71 352 151 277 210 1239 458 1635 2405 284 224 109 1608 259 116 102 675 395 1923 Wait 2831 | . 42 . 2 10 202 101 428 772 155 4 2 403 47 8 . 223 76 356 Move 8013 | 50 247 121 264 188 868 288 1089 1357 114 154 99 937 179 79 84 378 253 1264 Hop 1 | . . . . . . . . . . . . . . . . . . 1 Pick Up 171 | 8 7 3 7 5 21 13 5 25 6 10 1 16 5 4 . 14 7 14 Fast Attach 82 | 6 4 1 . 1 17 7 1 8 1 1 2 . . 2 . 8 3 20 Attach 104 | . 4 2 2 . 12 1 4 19 1 5 1 9 . 1 1 4 7 31 Detach 24 | . 1 . 1 . 5 . 2 7 1 1 1 . . . . . 2 3 Swap 113 | . 4 2 . . 9 11 4 26 1 5 . 10 5 . 3 9 5 19 Drop 168 | . 9 3 1 1 26 16 11 20 3 4 2 16 5 6 . 15 8 22 Fire 748 | 7 34 19 . 5 37 16 62 126 2 33 1 122 18 16 14 24 34 178 Melee 89 | . . . . . 42 5 . 35 . 7 . . . . . . . . Ram 2 | . . . . . . . . . . . . . . . . . . 2 Kick 6 | . . . . . . . 1 . . . . 2 . . . . . 3 Crush 8 | . . . . . . . . 2 . . . 1 . . . . . 5 Escape Stasis 5 | . . . . . . . . . . . . 5 . . . . . . Rewire 106 | . . . . . . . 23 . . . . 83 . . . . . . Trap 22 | . . . . . . . 5 8 . . . 4 . . . . . 5 Miscellaneous . | . . . . . . . . . . . . . . . . . . . Route ------- -11/Scrapyard -10/Materials (discovered 2 exits: [*Mat] / *Min) -10/Mines -10/Exiles -9/Mines -8/Materials (discovered 3 exits: [*Fac] / *Sto x2) -8/Storage -8/Recycling -6/Factory -5/Factory -5/DSF -4/Factory -4/Extension (discovered 2 exits: *Res / *Cet) -4/Cetus (discovered 2 exits: *Res / [*Arc]) -4/Archives (discovered 2 exits: *Res / *Hub) -4/Hub_04(d) -3/Research -2/Research -1/Access History --------- Turn | Location | Event 15 | -11/Scrapyard | Discovered new exit (range 15) 117 | -11/Scrapyard | Entered Materials 314 | -10/Materials | Discovered new exit (range 5) 421 | -10/Materials | Identified exit to Mines 520 | -10/Materials | Entered Mines 577 | -10/Mines | Build established: Mutant 631 | -10/Mines | Found a hidden stash of uninstalled traps 670 | -10/Mines | Lost 3 parts (1p2w) 709 | -10/Mines | Deemed a non-threat by the Exiles lab entrance 709 | -10/Mines | Discovered new exit (range 5) 714 | -10/Mines | Entered Exiles 753 | -10/Exiles | Met 8R-AWN 771 | -10/Exiles | Met EX-HEX 802 | -10/Exiles | Met EX-BIN 818 | -10/Exiles | Aligned with FarCom system 819 | -10/Exiles | Given EX-Vault access code 846 | -10/Exiles | Opened EX-Vault 854 | -10/Exiles | Found Trap Reconfigurator 877 | -10/Exiles | Warned to stay clear of 0b10 Research branches 908 | -10/Exiles | Met EX-DEC 1004 | -10/Exiles | Discovered new exit (range 10) 1017 | -10/Exiles | Left Exiles lab with Trap Reconfigurator 1017 | -10/Exiles | Entered Mines 1061 | -9/Mines | Learned location of Storage (-8) 1158 | -9/Mines | Discovered new exit (range 8) 1251 | -9/Mines | Entered Materials 1251 | -8/Materials | Evolved 4 slots: Propulsion x2, Utility x1, Weapon x1 1316 | -8/Materials | Discovered new exit (range 5) 1483 | -8/Materials | Repaired Wheel+ 1788 | -8/Materials | Discovered new exit (range 13) 2232 | -8/Materials | Garrison activated, responded to threat 2467 | -8/Materials | Identified exit to Storage 2688 | -8/Materials | Entered Storage 2689 | -8/Storage | Identified exit to Recycling 3112 | -8/Storage | Used back door to open Recycling access 3245 | -8/Storage | Build established: Trapper-Skirmisher 3264 | -8/Storage | Entered Recycling 3780 | -8/Recycling | Discovered new exit (range 9) 4087 | -8/Recycling | Scanned before Scraplab entrance 4189 | -8/Recycling | Entered Scraplab 4192 | -8/Recycling | Angered Scraplab inhabitants 4195 | -8/Recycling | Found Prototype Device 4195 | -8/Recycling | Identified Scrap Engine 4263 | -8/Recycling | Lost 5 parts (1p3n1w) 4591 | -8/Recycling | Build established: Commander-Mutant 5064 | -8/Recycling | Build established: Commander-Construct 5223 | -8/Recycling | Entered Factory 5223 | -6/Factory | Accompanied by 4 allies 5223 | -6/Factory | Evolved 4 slots: Power x1, Utility x3 5720 | -6/Factory | Fabricated Heavy Servo Lattice (x2) 5943 | -6/Factory | Build established: Trapper-Construct 6159 | -6/Factory | Lost 3 parts (1p1u1w) 6180 | -6/Factory | Discovered new exit (range 13) 6192 | -6/Factory | Identified exit to Factory 6388 | -6/Factory | Build established: Construct 7003 | -6/Factory | System corruption reached 10% 7673 | -6/Factory | First assault squad dispatched 7899 | -6/Factory | Central database locked down 7941 | -6/Factory | Entered another Factory area 7941 | -5/Factory | Evolved 2 slots: Propulsion x2 8263 | -5/Factory | Identified exit to DSF 8263 | -5/Factory | Entered DSF 8311 | -5/DSF | Additional patrols routed to DSF 8443 | -5/DSF | Lost 3 parts (1p2u) 8510 | -5/DSF | Sterilization system engaged 8530 | -5/DSF | Ambient heat levels rising (+10) 8545 | -5/DSF | Ambient heat levels rising (+10) 8559 | -5/DSF | Discovered new exit (range 14) 8560 | -5/DSF | Ambient heat levels rising (+10) 8575 | -5/DSF | Ambient heat levels rising (+10) 8590 | -5/DSF | Ambient heat levels rising (+10) 8593 | -5/DSF | Entered Factory 8593 | -4/Factory | Evolved 2 slots: Utility x1, Weapon x1 8700 | -4/Factory | Discovered new exit (range 13) 8713 | -4/Factory | Entered Extension 8745 | -4/Extension | Rescued a captive Derelict 8747 | -4/Extension | Rescued a captive Derelict 9110 | -4/Extension | Rescued a captive Derelict 9112 | -4/Extension | Rescued a captive Derelict 9255 | -4/Extension | Build established: Commander-Construct 9505 | -4/Extension | Lost 5 allies 9645 | -4/Extension | Rescued a captive Derelict 9724 | -4/Extension | Build established: Trapper-Construct 9971 | -4/Extension | Spotted B-86 Titan 10013 | -4/Extension | Disrupted transfer network 10020 | -4/Extension | Destroyed B-86 Titan 10049 | -4/Extension | Lost 4 allies 10166 | -4/Extension | Lost 5 parts (1p1u3w) 10175 | -4/Extension | Spotted B-86 Titan 10200 | -4/Extension | Destroyed B-86 Titan 10227 | -4/Extension | Lost 4 parts (1p2u1w) 10334 | -4/Extension | Build established: Construct 11112 | -4/Extension | Rescued A7 11547 | -4/Extension | Discovered new exit (range 10) 11551 | -4/Extension | Discovered new exit (range 6) 11654 | -4/Extension | Entered Cetus 11654 | -4/Cetus | Accompanied by 4 allies (A7) 11659 | -4/Cetus | Acquired a Cetus Manufacturing Module code from A7 11683 | -4/Cetus | Spotted Cetus Guard 11686 | -4/Cetus | Allies destroyed Cetus Guard 11687 | -4/Cetus | Spotted Cetus Guard 11690 | -4/Cetus | Spotted Cetus Guard 11691 | -4/Cetus | Spotted Cetus Guard 11698 | -4/Cetus | Allies destroyed Cetus Guard 11700 | -4/Cetus | Allies destroyed Cetus Guard 11706 | -4/Cetus | Allies destroyed Cetus Guard 11881 | -4/Cetus | Escorted A7 to Cetus Mainframe 11909 | -4/Cetus | Started Cetus Manufacturing Module 11934 | -4/Cetus | Manufactured an Enhanced Grunt 11943 | -4/Cetus | Discovered new exit (range 16) 11959 | -4/Cetus | Manufactured an Enhanced Grunt 11981 | -4/Cetus | Spotted Cetus Guard 11981 | -4/Cetus | Spotted Cetus Guard 11981 | -4/Cetus | Spotted Cetus Guard 11984 | -4/Cetus | Manufactured an Enhanced Grunt 11985 | -4/Cetus | Spotted Cetus Guard 11994 | -4/Cetus | Allies destroyed Cetus Guard 11996 | -4/Cetus | Allies destroyed Cetus Guard 12002 | -4/Cetus | Destroyed Cetus Guard 12005 | -4/Cetus | Allies destroyed Cetus Guard 12009 | -4/Cetus | Manufactured an Enhanced Grunt 12015 | -4/Cetus | Discovered new exit (range 16) 12022 | -4/Cetus | Met Revision 17 12034 | -4/Cetus | Manufactured an Enhanced Grunt 12036 | -4/Cetus | Lost 3 allies 12105 | -4/Cetus | Entered Archives 12105 | -4/Archives | Accompanied by 6 allies (A7) 12110 | -4/Archives | Received a hacking code to weaken MAIN.C 12170 | -4/Archives | Discovered new exit (range 16) 12221 | -4/Archives | Discovered new exit (range 15) 12286 | -4/Archives | Entered Hub_04(d) 12286 | -4/Hub_04(d) | Accompanied by 5 allies 12321 | -4/Hub_04(d) | Build established: Commander-Construct 12342 | -4/Hub_04(d) | Network Hub disabled 12365 | -4/Hub_04(d) | Network Hub disabled 12388 | -4/Hub_04(d) | Spotted Lightning 12407 | -4/Hub_04(d) | Spotted Lightning 12408 | -4/Hub_04(d) | Spotted Lightning 12415 | -4/Hub_04(d) | Discovered new exit (range 11) 12451 | -4/Hub_04(d) | Core integrity fell below 50% 12456 | -4/Hub_04(d) | Entered Research 12456 | -3/Research | Evolved 2 slots: Power x1, Propulsion x1 12458 | -3/Research | Lost 5 allies 12656 | -3/Research | Revision forces began assault on 0b10 12720 | -3/Research | Met up with Revision 17++ 12759 | -3/Research | Build established: Construct 13004 | -3/Research | Discovered new exit (range 16) 13056 | -3/Research | Identified exit to Research 13156 | -3/Research | Research terminal network offline 13253 | -3/Research | Entered another Research area 13253 | -2/Research | Evolved 2 slots: Utility x2 13410 | -2/Research | Discovered new exit (range 16) 13685 | -2/Research | Identified exit to Access 13731 | -2/Research | Build established: Scavenger-Construct 13731 | -2/Research | Entered Access 13731 | -1/Access | Evolved 2 slots: Utility x2 15049 | -1/Access | System corruption reached 10% 15290 | -1/Access | Energy Cycler disabled 15437 | -1/Access | Spotted B-99 Colossus 15518 | -1/Access | Lost 6 parts (1n2u3w) 15589 | -1/Access | System corruption reached 30% 15905 | -1/Access | Lost 3 parts (2u1w) 15981 | -1/Access | First assault squad dispatched 16319 | -1/Access | Core integrity fell below 50% 16391 | -1/Access | Destroyed 7 combat bots 16450 | -1/Access | Core integrity fell below 20% 16475 | -1/Access | Destroyed by Y-72 Warden with Railgun Last Messages --------------- 16436_ ALERT: Hostiles spotted, dispatching reinforcements to Terminal A013. 16440_ Slammed into K-01 Serf. 16440_ Destabilizing: System corrupted (+2). 16445_ K-01 Serf destroyed. 16446_ YONWTXALCI3J::QZJS7 |&5QSOHR 16446_ Xenon Bombardment Thruster destroyed. 16455_ K-01 Serf destroyed. 16455_ Wheel+ destroyed. 16455_ Structural Scanner destroyed. 16461_ System corrupted: Matter fused (-9). 16461_ Acquired HERF Cannon. 16465_ System corrupted: HERF Cannon failed to cycle. 16471_ S-43 Plague destroyed. 16472_ HERF Cannon destroyed. 16472_ Penetrated by Slug. 16474_ K-01 Serf collects debris. 16474_ U-05 Engineer builds a Wall. 16475_ Penetrated by Slug. Map ----- +----------------------------------------------------+ | ?????????????????????????????????????????????????? | | ?????????????????????????????????????????????????? | | ?????????????????????????????????????????????????? | | ?????????????????????????????????????????????????? | | ?????????????????????????????????????????????????? | | ????????## ??????????????????????????????????????? | | ???####### ??????????????????????????????????????? | | ???####### ???????#######???????????????????????? | | ??? # ???????###############???????????????? | | ???? # ??????## #???????????????? | | ????? # ######## #???????????????? | | ?????" # ######## "" #???????????????? | | ??????? / *%= # "" ^ #???????????????? | | ???????? # = # "" #???????????????? | | ???????? # # "Y #???????????????? | | ???????? # # "" ##??????????????? | | ????????## # "" ##??????????????? | | ????????## " "" ##??????????????? | | ????????##!! # ##??????????????? | | ????????##!! # %[ ##??????????????? | | ???????### ######+#########??????????????? | | ???????### # !!! #####??????????????? | | ???????## u #g k!! #??????????????????? | | ???????## ggg !! #??????????????????? | | ???????## H ; #??????????????????? | | ???????## #######+## @ #??????????????????? | | ???????## ## #u #??????????????????? | | ???????## ##???????# #??????????????????? | | ??????### ##???????# #??????????????????? | | ######### =## ??????#Y#########??????????????????? | | ########"s%###??????# ???????????????????????????? | | ! ##?????? ???????????????????????????? | | #######" s ????????????????????????????? | | ######## ?????????????????????????? | | ?????### ####### ??????????????????????????? | | ??????##############?????????????????????????????? | | ??????########???????????????????????????????????? | | ?????????????????????????????????????????????????? | | ?????????????????????????????????????????????????? | | ?????????????????????????????????????????????????? | | ?????????????????????????????????????????????????? | | ?????????????????????????????????????????????????? | | ?????????????????????????????????????????????????? | | ?????????????????????????????????????????????????? | | ?????????????????????????????????????????????????? | | ?????????????????????????????????????????????????? | | ?????????????????????????????????????????????????? | | ?????????????????????????????????????????????????? | | ?????????????????????????????????????????????????? | | ?????????????????????????????????????????????????? | +----------------------------------------------------+ Best States ------------- Heat Dissipation 128 Energy Generation 97 Energy Capacity 947 Matter Stores 300 Matter Capacity 450 Sight Range 22 Terrain Scan Range 20 Terrain Scan Density 210 ECM Strength 1 Jamming Range 16 Armor Coverage 600 Resistance: TH 20 Power Shielding 66 Propulsion Shielding 66 Evasion (%) 55 Target Analysis 12 Core Analysis 6 Armor Integrity Analysis 30 Recoil Reduction 7 Particle Charging 25 Offensive Hacking 12 Defensive Hacking 12 Authchip Count 2 Trap Extractor Capacity 6 Item Schematics ----------------- Trap Scanner | -8/Recycling | Hacked Lyr. Medium Armor Plating | -8/Recycling | Hacked Proton Cannon | -8/Recycling | Hacked Carbon-fiber Leg | -6/Factory | Scanalyzed Imp. Trap Extractor | -6/Factory | Scanalyzed Robot Schematics ------------------ M-13 Machinist | -10/Materials | Hacked H-55 Commando | -8/Recycling | Hacked Fabricated ------------ Heavy Servo Lattice | x2 | -6/Factory | Preloaded Repaired ---------- Wheel | 7% | -8/Materials Studied --------- Wheel | -8/Materials | Hacked Titanium Leg | -8/Materials | Hacked Carbon-fiber Leg | -6/Factory | Hacked Hvy. Machine Gun | -6/Factory | Hacked Autogun | -6/Factory | Hacked Quantum Reactor | -3/Research | Hacked Myomer Leg | -3/Research | Hacked Alien Tech Used ----------------- None Achievements -------------- Explosive Keycard Challenges ------------ None Game ------ Seed EfficiencyPlasmaNetwork Manual? 0 Play Time 03:15:59 Cumulative 773.1 hours Start 2026.01.11 @ 12:46:14 End 2026.01.11 @ 15:57:51 Sessions 1 Manual Loads 0 Difficulty Rogue Special Mode None Game No. 190 Rogue 52 Adventurer 138 Explorer 0 Win Type - Total 11 Types 7/0/1/2/0/0/0/0/1/0 Lore% 79 Gallery% 78 Achievement% 56 Wizard Run 0 Options --------- Layout 2 ASCII 0 Keyboard 0 Movement Mouse Keybinds 0 Fullscreen 1 Font 24/Smallcaps Map View 50x49 Zoom Use 0% Tactical HUD 1 Map Filters NONE Filters NONE Steam 1 RUN: a60bc25b-6371-4bdd-8357-be10842fb088